[Event "*** SCC Grand Prix: Titled Tuesday Blitz"]
[Site "Chess.com"]
[Date "2020.08.04"]
[Round "7"]
[White "SiddharthGMJagadeesh"]
[Black "peixe64"]
[Result "1/2-1/2"]
[WhiteElo "2579"]
[BlackElo "2342"]
[TimeControl "180+1"]
[EndTime "15:02:24 PDT"]
[Termination "Game drawn - insufficient material"]

1. d4 {[%clk 0:03:00.9]} 1... Nf6 {[%clk 0:02:59.8]} 2. Nf3 {[%clk 0:03:00.9]}
2... g6 {[%clk 0:02:59.2]} 3. c3 {[%clk 0:03:00.5]} 3... Bg7 {[%clk 0:02:58.9]}
4. Bg5 {[%clk 0:03:01.1]} 4... d5 {[%clk 0:02:58.2]} 5. Nbd2 {[%clk 0:03:00.6]}
5... O-O {[%clk 0:02:58.5]} 6. e3 {[%clk 0:02:59.3]} 6... Bf5 {[%clk 0:02:54.7]}
7. Be2 {[%clk 0:02:55.6]} 7... c6 {[%clk 0:02:52.1]} 8. O-O {[%clk 0:02:55.4]}
8... Nbd7 {[%clk 0:02:48.7]} 9. h3 {[%clk 0:02:53.1]} 9... h6 {[%clk 0:02:44.9]}
10. Bf4 {[%clk 0:02:50.8]} 10... g5 {[%clk 0:02:44.6]} 11. Bh2 {[%clk
0:02:50.2]} 11... Ne4 {[%clk 0:02:41]} 12. Nxe4 {[%clk 0:02:48.7]} 12... dxe4
{[%clk 0:02:33.3]} 13. Nd2 {[%clk 0:02:49]} 13... e5 {[%clk 0:02:33.3]} 14. Bg4
{[%clk 0:02:38.6]} 14... Bg6 {[%clk 0:02:15.2]} 15. Bxd7 {[%clk 0:02:15.1]}
15... Qxd7 {[%clk 0:02:14.2]} 16. dxe5 {[%clk 0:02:14.3]} 16... Qe6 {[%clk
0:02:00.7]} 17. Qb3 {[%clk 0:02:09.1]} 17... Rfe8 {[%clk 0:01:47.9]} 18. Rad1
{[%clk 0:01:59.5]} 18... Bxe5 {[%clk 0:01:20.2]} 19. Bxe5 {[%clk 0:01:58.3]}
19... Qxe5 {[%clk 0:01:19.6]} 20. Nc4 {[%clk 0:01:59.2]} 20... Qe6 {[%clk
0:01:11.8]} 21. Rd6 {[%clk 0:01:58.2]} 21... Qe7 {[%clk 0:00:48]} 22. Rfd1
{[%clk 0:01:48.9]} 22... Rad8 {[%clk 0:00:34.7]} 23. Rxd8 {[%clk 0:01:27.4]}
23... Rxd8 {[%clk 0:00:33.5]} 24. Rxd8+ {[%clk 0:01:28.3]} 24... Qxd8 {[%clk
0:00:33.6]} 25. Qxb7 {[%clk 0:01:28.1]} 25... Qd5 {[%clk 0:00:28.2]} 26. Qb8+
{[%clk 0:01:24.4]} 26... Kh7 {[%clk 0:00:28.1]} 27. b3 {[%clk 0:01:22.9]} 27...
Qd1+ {[%clk 0:00:24.9]} 28. Kh2 {[%clk 0:01:21.8]} 28... Qe2 {[%clk 0:00:22.9]}
29. Qxa7 {[%clk 0:01:16.9]} 29... Qxf2 {[%clk 0:00:20.6]} 30. Qd4 {[%clk
0:01:14.3]} 30... g4 {[%clk 0:00:19.5]} 31. Qd1 {[%clk 0:00:21.4]} 31... gxh3
{[%clk 0:00:16.4]} 32. Kxh3 {[%clk 0:00:19.7]} 32... Qxa2 {[%clk 0:00:12.6]} 33.
Ne5 {[%clk 0:00:16.8]} 33... Bf5+ {[%clk 0:00:11.5]} 34. Kh2 {[%clk 0:00:16.9]}
34... Qf2 {[%clk 0:00:10.8]} 35. Nc4 {[%clk 0:00:12.6]} 35... Qh4+ {[%clk
0:00:10.1]} 36. Kg1 {[%clk 0:00:12.9]} 36... Bg4 {[%clk 0:00:10.7]} 37. Qf1
{[%clk 0:00:11.5]} 37... f5 {[%clk 0:00:09.4]} 38. Nd6 {[%clk 0:00:08.5]} 38...
Qf6 {[%clk 0:00:08.3]} 39. Nc4 {[%clk 0:00:06.9]} 39... Qxc3 {[%clk 0:00:08.3]}
40. Qf4 {[%clk 0:00:05.1]} 40... Qe1+ {[%clk 0:00:08]} 41. Kh2 {[%clk
0:00:05.7]} 41... Qh4+ {[%clk 0:00:08.6]} 42. Kg1 {[%clk 0:00:06.3]} 42... Qf6
{[%clk 0:00:07.1]} 43. Qc7+ {[%clk 0:00:05.7]} 43... Kg6 {[%clk 0:00:03.9]} 44.
Ne5+ {[%clk 0:00:06.3]} 44... Kh5 {[%clk 0:00:03.8]} 45. Nxg4 {[%clk 0:00:04.7]}
45... Kxg4 {[%clk 0:00:02.2]} 46. Qf4+ {[%clk 0:00:03.9]} 46... Kh5 {[%clk
0:00:02.4]} 47. g4+ {[%clk 0:00:04.8]} 47... Kg6 {[%clk 0:00:02.5]} 48. gxf5+
{[%clk 0:00:04.7]} 48... Qxf5 {[%clk 0:00:03.4]} 49. Qd6+ {[%clk 0:00:05]} 49...
Kh5 {[%clk 0:00:03.6]} 50. Qh2+ {[%clk 0:00:04.3]} 50... Kg6 {[%clk 0:00:03.9]}
51. Qd6+ {[%clk 0:00:04.1]} 51... Kh5 {[%clk 0:00:04.1]} 52. Qe7 {[%clk
0:00:04.3]} 52... Kg6 {[%clk 0:00:05]} 53. Qe8+ {[%clk 0:00:04.2]} 53... Kf6
{[%clk 0:00:05.3]} 54. Qxc6+ {[%clk 0:00:04.5]} 54... Kg5 {[%clk 0:00:05.3]} 55.
Qc2 {[%clk 0:00:03]} 55... Qg4+ {[%clk 0:00:06.2]} 56. Qg2 {[%clk 0:00:03.5]}
56... Qxg2+ {[%clk 0:00:06.3]} 57. Kxg2 {[%clk 0:00:04.4]} 57... Kf5 {[%clk
0:00:06.8]} 58. b4 {[%clk 0:00:04.9]} 58... Ke5 {[%clk 0:00:07.3]} 59. Kg3
{[%clk 0:00:05.5]} 59... Kd5 {[%clk 0:00:07.8]} 60. Kf4 {[%clk 0:00:06.2]} 60...
Kc4 {[%clk 0:00:08.1]} 61. Kxe4 {[%clk 0:00:06.8]} 61... Kxb4 {[%clk 0:00:08.8]}
62. Kf5 {[%clk 0:00:07.2]} 62... Kc5 {[%clk 0:00:09.3]} 63. e4 {[%clk
0:00:07.8]} 63... Kd6 {[%clk 0:00:09.3]} 64. Kf6 {[%clk 0:00:08.1]} 64... Kd7
{[%clk 0:00:09.6]} 65. Kf7 {[%clk 0:00:07.5]} 65... Kd6 {[%clk 0:00:10.3]} 66.
Kf6 {[%clk 0:00:07.8]} 66... Kd7 {[%clk 0:00:10.5]} 67. Kg6 {[%clk 0:00:08.1]}
67... Ke6 {[%clk 0:00:10.8]} 68. Kxh6 {[%clk 0:00:07.1]} 68... Ke5 {[%clk
0:00:11.7]} 69. Kg6 {[%clk 0:00:06.6]} 69... Kxe4 {[%clk 0:00:12.6]} 1/2-1/2

[Event "*** SCC Grand Prix: Titled Tuesday Blitz"]
[Site "Chess.com"]
[Date "2020.08.04"]
[Round "7"]
[White "ketster"]
[Black "Goryachkina"]
[Result "0-1"]
[WhiteElo "2381"]
[BlackElo "2574"]
[TimeControl "180+1"]
[EndTime "15:02:25 PDT"]
[Termination "Goryachkina won by resignation"]

1. d4 {[%clk 0:02:55.4]} 1... d5 {[%clk 0:02:59.5]} 2. c4 {[%clk 0:02:55.3]}
2... e6 {[%clk 0:02:59.8]} 3. Nc3 {[%clk 0:02:55.2]} 3... Nf6 {[%clk 0:02:59.7]}
4. cxd5 {[%clk 0:02:55.3]} 4... exd5 {[%clk 0:03:00.6]} 5. Bg5 {[%clk
0:02:54.4]} 5... c6 {[%clk 0:03:00.7]} 6. Qc2 {[%clk 0:02:54.5]} 6... h6 {[%clk
0:02:59.8]} 7. Bh4 {[%clk 0:02:54.1]} 7... g6 {[%clk 0:03:00]} 8. Bxf6 {[%clk
0:02:26.8]} 8... Qxf6 {[%clk 0:02:59.7]} 9. Nxd5 {[%clk 0:02:27]} 9... Qxd4
{[%clk 0:02:29.3]} 10. Nc3 {[%clk 0:01:50.6]} 10... Bg7 {[%clk 0:02:27.3]} 11.
Nf3 {[%clk 0:01:49.5]} 11... Qb4 {[%clk 0:02:23.5]} 12. e3 {[%clk 0:01:45.6]}
12... Bf5 {[%clk 0:02:21]} 13. Qd2 {[%clk 0:01:29]} 13... O-O {[%clk 0:02:20.2]}
14. Be2 {[%clk 0:01:25.8]} 14... Nd7 {[%clk 0:02:18.5]} 15. Nd4 {[%clk
0:01:16.1]} 15... Bxd4 {[%clk 0:01:53.9]} 16. exd4 {[%clk 0:01:15.7]} 16... Kg7
{[%clk 0:01:50.6]} 17. O-O {[%clk 0:01:11.9]} 17... Nf6 {[%clk 0:01:48.6]} 18.
a3 {[%clk 0:01:07.5]} 18... Qd6 {[%clk 0:01:47]} 19. Rad1 {[%clk 0:01:06.1]}
19... Rad8 {[%clk 0:01:46.5]} 20. Bf3 {[%clk 0:01:01.8]} 20... Bg4 {[%clk
0:01:43.7]} 21. Qd3 {[%clk 0:00:50.7]} 21... Rfe8 {[%clk 0:01:37.3]} 22. h3
{[%clk 0:00:48]} 22... Bxf3 {[%clk 0:01:35.7]} 23. Qxf3 {[%clk 0:00:48.9]} 23...
Nd5 {[%clk 0:01:34.4]} 24. Ne4 {[%clk 0:00:44.4]} 24... Qf4 {[%clk 0:01:32.5]}
25. Qxf4 {[%clk 0:00:29.8]} 25... Nxf4 {[%clk 0:01:33.4]} 26. Nc5 {[%clk
0:00:30.4]} 26... b6 {[%clk 0:01:30.4]} 27. Nb3 {[%clk 0:00:30.4]} 27... Re2
{[%clk 0:01:27.4]} 28. Rb1 {[%clk 0:00:25.9]} 28... Rd6 {[%clk 0:00:53.8]} 29.
Rfd1 {[%clk 0:00:21.3]} 29... a5 {[%clk 0:00:47.6]} 30. a4 {[%clk 0:00:21.4]}
30... Rd5 {[%clk 0:00:47.9]} 31. Kf1 {[%clk 0:00:20.5]} 31... Re6 {[%clk
0:00:43.1]} 32. h4 {[%clk 0:00:20.6]} 32... Red6 {[%clk 0:00:42.6]} 33. g3
{[%clk 0:00:20.5]} 33... Ne6 {[%clk 0:00:42.8]} 34. Rbc1 {[%clk 0:00:20.8]}
34... Kf8 {[%clk 0:00:42.9]} 35. Rc3 {[%clk 0:00:18.2]} 35... Ke7 {[%clk
0:00:43.2]} 36. Rdc1 {[%clk 0:00:18.2]} 36... Kd7 {[%clk 0:00:43.6]} 37. Rf3
{[%clk 0:00:16.2]} 37... f5 {[%clk 0:00:42.8]} 38. h5 {[%clk 0:00:15.8]} 38...
gxh5 {[%clk 0:00:42.3]} 39. Kg2 {[%clk 0:00:15.5]} 39... f4 {[%clk 0:00:37.4]}
40. gxf4 {[%clk 0:00:13]} 40... Nxd4 {[%clk 0:00:37.7]} 41. Nxd4 {[%clk
0:00:12.5]} 41... Rxd4 {[%clk 0:00:38.6]} 42. f5 {[%clk 0:00:10.2]} 42... Rxa4
{[%clk 0:00:35.4]} 43. Re1 {[%clk 0:00:10.3]} 43... Rg4+ {[%clk 0:00:34.6]} 44.
Kf1 {[%clk 0:00:09.6]} 44... Rg7 {[%clk 0:00:33.4]} 45. Re4 {[%clk 0:00:05.1]}
45... Rf7 {[%clk 0:00:33.1]} 46. Rh4 {[%clk 0:00:05.2]} 46... b5 {[%clk
0:00:20.6]} 47. Rxh5 {[%clk 0:00:05]} 47... a4 {[%clk 0:00:21]} 48. Rh4 {[%clk
0:00:04.4]} 48... Kc7 {[%clk 0:00:20.2]} 49. Re4 {[%clk 0:00:04.1]} 49... Rdf6
{[%clk 0:00:19.9]} 50. Ref4 {[%clk 0:00:03.3]} 50... Kb6 {[%clk 0:00:20.4]} 51.
Kg2 {[%clk 0:00:03.5]} 51... c5 {[%clk 0:00:20.8]} 52. Kg3 {[%clk 0:00:03.7]}
52... b4 {[%clk 0:00:20.5]} 53. Kg4 {[%clk 0:00:03.7]} 53... Kb5 {[%clk
0:00:21]} 54. Kh5 {[%clk 0:00:03.5]} 54... c4 {[%clk 0:00:21.3]} 55. Kg4 {[%clk
0:00:03.5]} 55... b3 {[%clk 0:00:21.1]} 56. Re4 {[%clk 0:00:03.3]} 56... Kb4
{[%clk 0:00:20]} 57. Rff4 {[%clk 0:00:02.9]} 57... Rc6 {[%clk 0:00:19.8]} 58.
Re6 {[%clk 0:00:03.1]} 58... Rf6 {[%clk 0:00:15.5]} 59. Rxc6 {[%clk 0:00:02.4]}
59... Rxc6 {[%clk 0:00:16.4]} 60. f6 {[%clk 0:00:02.9]} 60... Rc8 {[%clk
0:00:16.5]} 61. f7 {[%clk 0:00:03.1]} 61... Rf8 {[%clk 0:00:16.7]} 62. Kh5
{[%clk 0:00:03.1]} 62... a3 {[%clk 0:00:15.8]} 63. bxa3+ {[%clk 0:00:03.5]}
63... Kc5 {[%clk 0:00:16]} 64. Kg6 {[%clk 0:00:03.3]} 64... b2 {[%clk
0:00:16.2]} 65. Kg7 {[%clk 0:00:02.8]} 65... Rxf7+ {[%clk 0:00:16.5]} 66. Rxf7
{[%clk 0:00:03.1]} 66... b1=Q {[%clk 0:00:17.4]} 67. Rc7+ {[%clk 0:00:02.9]}
67... Kd6 {[%clk 0:00:17.8]} 0-1

[Event "*** SCC Grand Prix: Titled Tuesday Blitz"]
[Site "Chess.com"]
[Date "2020.08.04"]
[Round "7"]
[White "Fortitudine"]
[Black "XiaoKangZhong"]
[Result "0-1"]
[WhiteElo "2263"]
[BlackElo "2411"]
[TimeControl "180+1"]
[EndTime "15:02:44 PDT"]
[Termination "XiaoKangZhong won on time"]

1. c4 {[%clk 0:03:00.9]} 1... Nf6 {[%clk 0:02:58.9]} 2. g3 {[%clk 0:03:00.9]}
2... d5 {[%clk 0:02:53.1]} 3. cxd5 {[%clk 0:03:01.8]} 3... Nxd5 {[%clk 0:02:54]}
4. Bg2 {[%clk 0:03:01.3]} 4... g6 {[%clk 0:02:53.6]} 5. Nc3 {[%clk 0:03:01.4]}
5... Nb6 {[%clk 0:02:54]} 6. d3 {[%clk 0:03:01]} 6... Bg7 {[%clk 0:02:54.4]} 7.
Be3 {[%clk 0:03:01]} 7... O-O {[%clk 0:02:54.9]} 8. Qd2 {[%clk 0:03:01.1]} 8...
e5 {[%clk 0:02:54]} 9. Bh6 {[%clk 0:02:58]} 9... Nc6 {[%clk 0:02:51.8]} 10. h4
{[%clk 0:02:57.3]} 10... f6 {[%clk 0:02:29.7]} 11. Bxg7 {[%clk 0:02:43.4]} 11...
Kxg7 {[%clk 0:02:30.6]} 12. h5 {[%clk 0:02:44]} 12... g5 {[%clk 0:02:29.3]} 13.
h6+ {[%clk 0:02:24.1]} 13... Kg8 {[%clk 0:02:25.8]} 14. Nf3 {[%clk 0:02:14.6]}
14... Nd4 {[%clk 0:02:23.6]} 15. e3 {[%clk 0:01:58.9]} 15... Ne6 {[%clk
0:02:15.5]} 16. O-O-O {[%clk 0:01:54.1]} 16... c5 {[%clk 0:02:11.8]} 17. Kb1
{[%clk 0:01:51.3]} 17... Nd5 {[%clk 0:02:06.5]} 18. Nxd5 {[%clk 0:01:30.3]}
18... Qxd5 {[%clk 0:02:07.4]} 19. Nh4 {[%clk 0:01:24.2]} 19... Qd7 {[%clk
0:01:53.5]} 20. Nf5 {[%clk 0:01:22.1]} 20... Rb8 {[%clk 0:01:47.3]} 21. Be4
{[%clk 0:01:19.6]} 21... Rf7 {[%clk 0:01:43.8]} 22. f4 {[%clk 0:01:00.9]} 22...
b6 {[%clk 0:01:37.6]} 23. fxe5 {[%clk 0:00:56.1]} 23... fxe5 {[%clk 0:01:36.6]}
24. Rhf1 {[%clk 0:00:50.1]} 24... Bb7 {[%clk 0:01:35.6]} 25. Qg2 {[%clk
0:00:45.7]} 25... Rbf8 {[%clk 0:01:06.7]} 26. g4 {[%clk 0:00:38.3]} 26... Nd8
{[%clk 0:00:59.8]} 27. Rfe1 {[%clk 0:00:22.6]} 27... Re8 {[%clk 0:00:54.3]} 28.
Bxb7 {[%clk 0:00:18.1]} 28... Nxb7 {[%clk 0:00:43.6]} 29. Qe4 {[%clk 0:00:18.4]}
29... Nd6 {[%clk 0:00:38.8]} 30. Nxd6 {[%clk 0:00:18.7]} 30... Qxd6 {[%clk
0:00:39.7]} 31. Rf1 {[%clk 0:00:18.9]} 31... Qxh6 {[%clk 0:00:21.5]} 32. Rxf7
{[%clk 0:00:18.6]} 32... Kxf7 {[%clk 0:00:22.4]} 33. Rh1 {[%clk 0:00:17.9]}
33... Qg6 {[%clk 0:00:10.8]} 34. Rxh7+ {[%clk 0:00:17.3]} 34... Kf6 {[%clk
0:00:11.3]} 35. Qc6+ {[%clk 0:00:15.3]} 35... Re6 {[%clk 0:00:11.5]} 36. Qd7
{[%clk 0:00:12.7]} 36... e4 {[%clk 0:00:06]} 37. d4 {[%clk 0:00:11.5]} 37...
cxd4 {[%clk 0:00:06.2]} 38. Qxd4+ {[%clk 0:00:12.3]} 38... Re5 {[%clk 0:00:06]}
39. Qd6+ {[%clk 0:00:11.1]} 39... Re6 {[%clk 0:00:06.4]} 40. Qf8+ {[%clk
0:00:11.7]} 40... Ke5 {[%clk 0:00:06.1]} 41. Qh8+ {[%clk 0:00:11.5]} 41... Qf6
{[%clk 0:00:05.6]} 42. Qxf6+ {[%clk 0:00:09.9]} 42... Rxf6 {[%clk 0:00:06.5]}
43. Rxa7 {[%clk 0:00:10.8]} 43... Rf1+ {[%clk 0:00:06.2]} 44. Kc2 {[%clk
0:00:10.7]} 44... Rf2+ {[%clk 0:00:05.6]} 45. Kc3 {[%clk 0:00:11.1]} 45... Re2
{[%clk 0:00:05.9]} 46. Re7+ {[%clk 0:00:10.3]} 46... Kd5 {[%clk 0:00:06]} 47.
Rg7 {[%clk 0:00:08.8]} 47... Rxe3+ {[%clk 0:00:06.2]} 48. Kd2 {[%clk 0:00:09.1]}
48... Rd3+ {[%clk 0:00:06.5]} 49. Ke2 {[%clk 0:00:09.7]} 49... Rg3 {[%clk
0:00:07.1]} 50. Rxg5+ {[%clk 0:00:09.7]} 50... Kd4 {[%clk 0:00:07.6]} 51. Rg6
{[%clk 0:00:09.4]} 51... Rg2+ {[%clk 0:00:07.4]} 52. Kd1 {[%clk 0:00:09.7]}
52... Rxb2 {[%clk 0:00:05.8]} 53. g5 {[%clk 0:00:10.1]} 53... Kd3 {[%clk
0:00:04.2]} 54. Rd6+ {[%clk 0:00:09.4]} 54... Ke3 {[%clk 0:00:04.8]} 55. g6
{[%clk 0:00:09.6]} 55... Rxa2 {[%clk 0:00:05.2]} 56. Rxb6 {[%clk 0:00:09.6]}
56... Ra1+ {[%clk 0:00:05.3]} 57. Kc2 {[%clk 0:00:09.4]} 57... Rg1 {[%clk
0:00:06.2]} 58. Rf6 {[%clk 0:00:08.5]} 58... Ke2 {[%clk 0:00:05.1]} 59. Kc3
{[%clk 0:00:02]} 59... e3 {[%clk 0:00:05.5]} 60. Kd4 {[%clk 0:00:02]} 60... Rg4+
{[%clk 0:00:05.4]} 61. Kc3 {[%clk 0:00:01.1]} 61... Ke1 {[%clk 0:00:03.4]} 0-1

[Event "*** SCC Grand Prix: Titled Tuesday Blitz"]
[Site "Chess.com"]
[Date "2020.08.04"]
[Round "7"]
[White "ahachess"]
[Black "SamuelGhimpu2003"]
[Result "1/2-1/2"]
[WhiteElo "2298"]
[BlackElo "2558"]
[TimeControl "180+1"]
[EndTime "15:02:52 PDT"]
[Termination "Game drawn by agreement"]

1. d4 {[%clk 0:03:00.5]} 1... Nf6 {[%clk 0:02:58.1]} 2. c4 {[%clk 0:03:00.3]}
2... g6 {[%clk 0:02:56.8]} 3. Nc3 {[%clk 0:02:59.8]} 3... d5 {[%clk 0:02:56.7]}
4. cxd5 {[%clk 0:03:00]} 4... Nxd5 {[%clk 0:02:57.6]} 5. e4 {[%clk 0:03:00.6]}
5... Nxc3 {[%clk 0:02:58.1]} 6. bxc3 {[%clk 0:03:01.5]} 6... Bg7 {[%clk
0:02:59]} 7. Nf3 {[%clk 0:03:02]} 7... c5 {[%clk 0:02:59.9]} 8. Rb1 {[%clk
0:03:01.9]} 8... O-O {[%clk 0:02:59.1]} 9. Be2 {[%clk 0:03:02.2]} 9... cxd4
{[%clk 0:02:59.6]} 10. cxd4 {[%clk 0:03:02.4]} 10... Qa5+ {[%clk 0:03:00.5]} 11.
Qd2 {[%clk 0:02:59.9]} 11... Qxd2+ {[%clk 0:02:54.2]} 12. Bxd2 {[%clk 0:02:59]}
12... Rd8 {[%clk 0:02:51.9]} 13. Bc3 {[%clk 0:02:57.1]} 13... Nc6 {[%clk
0:02:46.1]} 14. Rd1 {[%clk 0:02:53.9]} 14... Bg4 {[%clk 0:02:44.7]} 15. e5
{[%clk 0:02:47]} 15... Rac8 {[%clk 0:02:38.8]} 16. Ba1 {[%clk 0:02:34.3]} 16...
Nb4 {[%clk 0:02:24.1]} 17. O-O {[%clk 0:01:58.5]} 17... Nxa2 {[%clk 0:02:23]}
18. h3 {[%clk 0:01:46.8]} 18... Bf5 {[%clk 0:02:05.2]} 19. g4 {[%clk 0:01:34.9]}
19... Be4 {[%clk 0:01:48.1]} 20. Ng5 {[%clk 0:01:11]} 20... Bd5 {[%clk
0:01:33.6]} 21. Bf3 {[%clk 0:00:59.2]} 21... Bxf3 {[%clk 0:01:26.8]} 22. Nxf3
{[%clk 0:00:58.1]} 22... Nc3 {[%clk 0:01:27.7]} 23. Rd2 {[%clk 0:00:54.2]} 23...
b5 {[%clk 0:01:15.1]} 24. Kg2 {[%clk 0:00:42.8]} 24... b4 {[%clk 0:01:08.5]} 25.
Bxc3 {[%clk 0:00:37.2]} 25... Rxc3 {[%clk 0:00:27.6]} 26. Rb1 {[%clk 0:00:35.9]}
26... Rb8 {[%clk 0:00:22.4]} 27. Ra2 {[%clk 0:00:35.2]} 27... b3 {[%clk
0:00:21.2]} 28. Rxa7 {[%clk 0:00:33.7]} 28... f6 {[%clk 0:00:15.6]} 29. Ra3
{[%clk 0:00:23.9]} 29... Bh6 {[%clk 0:00:14.6]} 30. g5 {[%clk 0:00:10.5]} 30...
Bxg5 {[%clk 0:00:12.1]} 31. Nxg5 {[%clk 0:00:09.5]} 31... fxg5 {[%clk 0:00:13]}
32. d5 {[%clk 0:00:08.4]} 32... Kf7 {[%clk 0:00:12.9]} 33. Ra7 {[%clk
0:00:06.7]} 33... b2 {[%clk 0:00:11.8]} 34. d6 {[%clk 0:00:06.9]} 34... Rc1
{[%clk 0:00:11.2]} 35. Rxe7+ {[%clk 0:00:06.2]} 35... Kf8 {[%clk 0:00:11.5]} 36.
Rxb2 {[%clk 0:00:06.5]} 36... Rxb2 {[%clk 0:00:12.4]} 37. Rxh7 {[%clk
0:00:06.7]} 37... Rd2 {[%clk 0:00:08.7]} 38. Rh8+ {[%clk 0:00:02.8]} 38... Kf7
{[%clk 0:00:08.4]} 39. Rh7+ {[%clk 0:00:03.1]} 39... Kg8 {[%clk 0:00:07.8]} 40.
Re7 {[%clk 0:00:03.3]} 40... Re1 {[%clk 0:00:06.9]} 41. d7 {[%clk 0:00:02.9]}
41... Ree2 {[%clk 0:00:01.4]} 42. Re8+ {[%clk 0:00:03.4]} 42... Kf7 {[%clk
0:00:02.3]} 43. d8=Q {[%clk 0:00:04.3]} 43... Rxd8 {[%clk 0:00:02.4]} 44. Rxd8
{[%clk 0:00:05.2]} 44... Rxe5 {[%clk 0:00:02.3]} 45. Rd7+ {[%clk 0:00:05.5]}
45... Kf6 {[%clk 0:00:02.4]} 46. Rd6+ {[%clk 0:00:05.7]} 46... Kg7 {[%clk
0:00:02.8]} 47. Rd7+ {[%clk 0:00:06.2]} 47... Kh6 {[%clk 0:00:03.5]} 48. Rd6
{[%clk 0:00:06.6]} 48... Re4 {[%clk 0:00:03.8]} 49. Rd7 {[%clk 0:00:06.7]} 49...
Ra4 {[%clk 0:00:04]} 50. Rd6 {[%clk 0:00:06.9]} 50... g4 {[%clk 0:00:04.4]} 51.
hxg4 {[%clk 0:00:07.1]} 51... Rxg4+ {[%clk 0:00:05.3]} 52. Kh3 {[%clk
0:00:07.8]} 52... Ra4 {[%clk 0:00:06.2]} 53. Kg3 {[%clk 0:00:07.8]} 53... Kh5
{[%clk 0:00:06.4]} 54. f3 {[%clk 0:00:08.1]} 54... Ra1 {[%clk 0:00:05.9]} 55.
Rd5+ {[%clk 0:00:08.5]} 55... g5 {[%clk 0:00:06]} 56. Rd8 {[%clk 0:00:08.9]}
56... Rg1+ {[%clk 0:00:06.3]} 57. Kf2 {[%clk 0:00:09.4]} 57... Ra1 {[%clk
0:00:07.2]} 58. Kg3 {[%clk 0:00:09.8]} 58... Kg6 {[%clk 0:00:07.4]} 59. Rd6+
{[%clk 0:00:09.5]} 59... Kf5 {[%clk 0:00:06.8]} 60. Rd5+ {[%clk 0:00:10]} 60...
Kg6 {[%clk 0:00:07.5]} 61. Rd6+ {[%clk 0:00:10.5]} 61... Kh5 {[%clk 0:00:07.8]}
62. Rd5 {[%clk 0:00:11]} 62... Ra3 {[%clk 0:00:07.7]} 63. Kg2 {[%clk 0:00:11]}
63... Kh4 {[%clk 0:00:07.9]} 64. Rd4+ {[%clk 0:00:11]} 64... Kh5 {[%clk
0:00:07.6]} 65. Kg3 {[%clk 0:00:11.6]} 65... Rb3 {[%clk 0:00:05.8]} 1/2-1/2